Cogmind - Beta 16 @@@ ROGUE MODE // 2025.10.26 @ 13:19:14 Player: beans Result: Destroyed by G-47 Trooper with Particle Gun Performance ------------- Evolutions (2) 1000 Regions Visited (4) 800 Robots Destroyed (74) 370 Value Destroyed (1774) 1774 Prototype IDs (2) 40 Alien Tech Used (0) 0 Bonus (233) 233 TOTAL SCORE: 4217 Bonus ------- High Alert Combat Kills 19 Follower Combat Kills 214 Cogmind --------- Core Integrity 0/550 Matter 251/300 Energy 100/100 System Corruption 0% Temperature Cool (9) Movement Core (100) Ox1 Location -8/Materials Parts ------- > --- POWER (1) -------- (None) > --- PROPULSION (2) --- (None) > --- UTILITY (5) ------ Small Storage Unit > --- WEAPON (3) ------- (None) > --- INVENTORY (8) ---- High-capacity Matter Pod (200) High-capacity Matter Pod (200) High-capacity Matter Pod (200) Gatling Laser Improved Light Cannon Improved Light Cannon Bore Cannon Rocket Launcher Peak State ------------ > --- POWER ------------ Light Deuterium Engine > --- PROPULSION ------- Improved Treads > --- UTILITY ---------- Improved Heat Sink Small Storage Unit > --- WEAPON ----------- Gatling Laser Gatling Laser Gatling Laser > --- INVENTORY -------- High-capacity Matter Pod High-capacity Matter Pod High-capacity Matter Pod Improved Light Cannon Improved Light Cannon Bore Cannon Rocket Launcher [Rating: 22] Favorites ----------- Power Light Ion Engine Engine Light Ion Engine Power Core Light Nuclear Core Propulsion Light Treads Treads Light Treads Leg Aluminum Leg Flight Unit Flight Unit Utility Improved Heat Sink Device Improved Heat Sink Storage Small Storage Unit Weapon Particle Cannon Energy Gun Improved Medium Laser Energy Cannon Particle Cannon Ballistic Cannon Improved Light Cannon Launcher Rocket Launcher Build | -11 -10 -10 -9 -8 ------- Run | Yrd Mat Min Mat Mat Slots Evolved 4 | . . . 2 2 Power . | . . . . . Propulsion . | . . . . . Utility 3 | . . . 1 2 Weapon 1 | . . . 1 . Parts Attached 33 | 5 4 1 14 9 Power 5 | 1 . . 3 1 Engine 4 | 1 . . 2 1 Core 1 | . . . 1 . Reactor . | . . . . . Propulsion 7 | 2 . . 2 3 Treads 3 | 2 . . 1 . Leg 1 | . . . 1 . Wheel . | . . . . . Hover . | . . . . . Flight 3 | . . . . 3 Utility 4 | . 2 . 2 . Device 3 | . 2 . 1 . Storage 1 | . . . 1 . Processor . | . . . . . Hackware . | . . . . . Protection . | . . . . . Artifact . | . . . . . Weapon 17 | 2 2 1 7 5 Energy Gun 9 | 2 1 . 3 3 Energy Cannon 3 | . 1 1 1 . Ballistic Gun . | . . . . . Ballistic Cannon 3 | . . . 2 1 Launcher 2 | . . . 1 1 Special Weapon . | . . . . . Impact Weapon . | . . . . . Slashing Weapon . | . . . . . Piercing Weapon . | . . . . . Special Melee Weapon . | . . . . . Unidentified Prototypes 2 | . . . 2 . Parts Lost 14 | . . . 5 9 Power 2 | . . . 1 1 Propulsion 6 | . . . 2 4 Utility 2 | . . . 1 1 Weapon 4 | . . . 1 3 Highest Loss Streak 5 | . . . 3 5 To Critical Strikes . | . . . . . Average Backups 5 | . 3 4 6 6 Power . | . . . . . Propulsion . | . . . . . Utility . | . . . 1 3 Weapon 4 | . 3 4 3 3 Tool/Special . | . . . . . Unused Backups 4 | . . . 1 3 Power 1 | . . . 1 . Propulsion . | . . . . . Utility 3 | . . . . 3 Weapon . | . . . . . Tool/Special . | . . . . . Average Slot Usage (%) 89 | . 94 100 92 51 Engine 7 | . 14 14 2 6 Core 3 | . . . 7 . Treads 20 | . 28 28 19 6 Device 22 | . 22 28 24 6 Storage 3 | . . . 5 9 Energy Gun 12 | . 15 . 17 11 Energy Cannon 13 | . 12 27 9 2 Ballistic Cannon 1 | . . . 1 8 Launcher 2 | . . . 3 . Peak Build Rating 22 | 5 12 13 21 22 Average Rating 15 | 3 10 12 18 14 On Entrance 9 | . 5 12 13 15 Avg Prop Armor Cover (%) . | . . . . . Naked Turns . | . . . . . Heaviest Build 25 | 7 13 14 25 25 Greatest Support 40 | 40 40 40 40 23 Greatest Overweight (x) 5 | . . . 5 4 Average Overweight (x) . | . . . . . Largest Inventory Capacity 8 | 5 5 5 8 8 Average Capacity 6 | 5 5 5 6 8 Most Carried 8 | 2 5 5 8 8 Average Carried 5 | . 3 4 6 6 Final Capacity 8 | 5 5 5 8 8 Final Carried 8 | . 4 5 7 8 Class Distribution -------------------- 38% | Mutant 33% | Gunner 27% | Tank Dominant Class ---------------- Mutant | -10/Materials Mutant | -10/Mines Tank | -9/Materials Gunner | -8/Materials Resources | -11 -10 -10 -9 -8 ----------- Run | Yrd Mat Min Mat Mat Matter Collected 1407 | 250 40 10 830 277 Remotely . | . . . . . Salvage Created 2288 | . 281 104 1300 603 Parts 137 | . 24 11 76 26 Haulers Intercepted 6 | . . . 6 . Recyclers Shooed 2 | . . 1 . 1 Parts Field Recycled . | . . . . . Retrieved Matter . | . . . . . Parts Self-Destructed . | . . . . . Prevented . | . . . . . Parts Restored . | . . . . . Kills | -11 -10 -10 -9 -8 ------- Run | Yrd Mat Min Mat Mat Combat Hostiles Destroyed 45 | . 8 5 17 15 Guns 13 | . 2 . 9 2 Cannons 16 | . 6 2 4 4 AOE 16 | . . 3 4 9 Classes Destroyed 10 | . 5 1 3 1 Worker 6 | . 1 . 4 1 Builder 2 | . . . 2 . Hauler 6 | . . . 6 . Recycler 7 | . . 1 3 3 Operator 3 | . 1 . 2 . Watcher 5 | . 1 . 2 2 Swarmer 15 | . 3 5 3 4 Grunt 20 | . 5 . 7 8 Duelist 1 | . . . . 1 Sentry 9 | . . . 7 2 Best Kill Streak 14 | . 7 3 4 14 Combat Bots Only 7 | . 5 3 3 7 Max Kills in Single Turn 6 | . 2 3 3 6 Gunslinging . | . . . . . Exploded 5 | . . 3 2 5 Melee . | . . . . . Uniques/NPCs Destroyed . | . . . . . Combat | -11 -10 -10 -9 -8 -------- Run | Yrd Mat Min Mat Mat Hostile Shots Fired 234 | . 40 2 90 102 Missed 57 | . 13 . 21 23 Hits 177 | . 27 2 69 79 Melee 3 | . . . . 3 Projectile 174 | . 27 2 69 76 Critical Strikes 9 | . . . 3 6 Damage Taken 2481 | . 176 34 847 1424 Core 734 | . 26 . 144 564 Absorbed by Shields 163 | . 69 14 80 . Core Remaining (%) 84 | 100 . 89 64 . Volleys Fired 149 | . 24 8 86 31 Largest 3 | . 2 2 3 3 Hottest 240 | . 124 136 192 240 Shots Fired 323 | . 45 16 195 67 Gun 184 | . 24 . 128 32 Cannon 130 | . 21 16 64 29 Launcher 9 | . . . 3 6 Special . | . . . . . Kinetic 39 | . . . 11 28 Thermal 275 | . 45 16 181 33 Explosive 9 | . . . 3 6 Electromagnetic . | . . . . . Robot Hit Streak 8 | . 6 3 8 8 Robot Miss Streak 4 | . 3 1 4 4 Penetration Max . | . . . . . Secondary Targets 2 | . . . . 2 Max Gunslinging Chain 1 | . . . . 1 Shots Hit Robots 172 | . 22 8 93 49 Core Hits 99 | . 13 5 40 41 Critical Kills . | . . . . . Critical Parts Destroyed . | . . . . . Critical Strikes 4 | . . . 4 . Burn 4 | . . . 4 . Melee Attacks . | . . . . . Impact . | . . . . . Slashing . | . . . . . Piercing . | . . . . . Sneak Attacks . | . . . . . Combat Hostiles . | . . . . . Follow-up Attacks . | . . . . . Damage Inflicted 4891 | . 569 343 2038 1941 Guns 1675 | . 162 . 980 533 Cannons 1523 | . 245 162 722 394 Explosions 1693 | . 162 181 336 1014 Melee . | . . . . . Ramming . | . . . . . Kinetic 522 | . . . 149 373 Thermal 3019 | . 569 343 1553 554 Explosive 1350 | . . . 336 1014 Electromagnetic . | . . . . . Impact . | . . . . . Slashing . | . . . . . Piercing . | . . . . . Highest Corruption . | . . . . . Average Corruption . | . . . . . Corruption Purged . | . . . . . Corruption Blocked . | . . . . . Overload Shots . | . . . . . Overflow Damage 128 | . . 40 22 66 Projectiles 22 | . . . 21 1 Explosions 106 | . . 40 1 65 Melee . | . . . . . Knockbacks 3 | . . . . 3 Impact . | . . . . . Kinetic 3 | . . . . 3 Secondary . | . . . . . Self-Inflicted Damage 197 | . . 23 35 139 Shots 5 | . . 1 1 3 Rammed . | . . . . . Targets Rammed . | . . . . . Kicked . | . . . . . Crushed . | . . . . . Highest Temperature 427 | . 143 66 178 427 Average Temperature 80 | . 45 26 46 165 Received Heat Transfer 1067 | . 30 . 326 711 Effects 3 | . . . . 3 Shutdowns 1 | . . . . 1 Interference 1 | . . . . 1 Short Circuit 1 | . . . . 1 Siege Activations . | . . . . . Martial Activations . | . . . . . Shielding Activations . | . . . . . Robots Disrupted . | . . . . . Combat Hostiles . | . . . . . Robots Corrupted . | . . . . . Combat Hostiles . | . . . . . Parts Fried . | . . . . . Impact Corruptions . | . . . . . Robots Melted . | . . . . . Combat Hostiles . | . . . . . Parts Melted 12 | . 2 . 9 1 Heat Transferred 6274 | . 951 546 3515 1262 Parts Sabotaged . | . . . . . Parts Stolen . | . . . . . Parts Stripped . | . . . . . Power Chain Reactions . | . . . . . Alert | -11 -10 -10 -9 -8 ------- Run | Yrd Mat Min Mat Mat Maximum Alert Level 2 | . . . 2 2 Low Security (%) 65 | 100 100 100 39 73 Level 1 30 | . . . 53 26 Level 2 4 | . . . 7 . Level 3 . | . . . . . Level 4 . | . . . . . Level 5 . | . . . . . High Security . | . . . . . Max Security . | . . . . . Peak Influence 432 | . 184 195 432 399 Initial 180 | . . 62 51 180 Average 174 | . 99 65 244 186 Influence Increases 2106 | . 310 258 1049 489 Destroy 0b10 Robot/C 1100 | . 160 100 540 300 Destroy 0b10 Robot/NC 165 | . 15 5 115 30 Destroy Leader 294 | . 42 20 168 64 Allied During Kill 94 | . . 19 75 . Successful Hack 59 | . . . 59 . Disable Machine 210 | . 75 90 15 30 Destroy Structure 124 | . 3 24 32 65 Lose Combat Pursuer 60 | . 15 . 45 . Influence Decreases 1717 | . 150 285 753 529 Entered New Map 429 | . . 98 82 249 Time Decay 1088 | . 150 187 561 190 Lost Part 140 | . . . 50 90 Lost Ally 60 | . . . 60 . Squads Dispatched 8 | . 2 . 3 3 Investigation 1 | . . . 1 . Extermination . | . . . . . Reinforcement 4 | . 2 . 2 . Assault 2 | . . . . 2 Garrison 1 | . . . . 1 Intercept . | . . . . . Searches Triggered . | . . . . . Construction Impeded . | . . . . . Haulers Reinforced . | . . . . . Active Scanning Responses . | . . . . . Cargo Convoy Interrupts . | . . . . . Stealth | -11 -10 -10 -9 -8 --------- Run | Yrd Mat Min Mat Mat Distress Signals 7 | . . . 4 3 Communications Jammed . | . . . . . Distress Signals . | . . . . . Times Spotted 86 | . 13 5 39 29 Peak Tracking Total 9 | . 4 3 6 9 Tactical Retreats 4 | . 1 . 3 . Traps | -11 -10 -10 -9 -8 ------- Run | Yrd Mat Min Mat Mat Traps Triggered . | . . . . . Indirectly . | . . . . . Trap Hack Attempts . | . . . . . Triggered . | . . . . . Disarmed . | . . . . . Reprogrammed . | . . . . . Reused . | . . . . . Traps Extracted . | . . . . . Installed . | . . . . . Triggered . | . . . . . Machines | -11 -10 -10 -9 -8 ---------- Run | Yrd Mat Min Mat Mat Machines Disabled 15 | . 5 6 2 2 Max in Single Turn 6 | . 4 6 1 2 Garrison Access 1 | . . . . 1 Machines Repaired . | . . . . . Machines Dismantled . | . . . . . Machines Sabotaged . | . . . . . Overloaded Fab Kills . | . . . . . Hacking | -11 -10 -10 -9 -8 --------- Run | Yrd Mat Min Mat Mat Machines Accessed 4 | . . . 4 . Terminals 2 | . . . 2 . Fabricators . | . . . . . Repair Stations . | . . . . . Recycling Units . | . . . . . Scanalyzers 2 | . . . 2 . Garrison Access . | . . . . . Total Hacks 11 | . . . 11 . Successful 6 | . . . 6 . Failed 4 | . . . 4 . Catastrophic . | . . . . . Database Lockouts 1 | . . . 1 . Manual . | . . . . . Terminals 5 | . . . 5 . Fabricators . | . . . . . Repair Stations . | . . . . . Recycling Units . | . . . . . Scanalyzers 6 | . . . 6 . Garrison Access . | . . . . . Terminal Hacks 2 | . . . 2 . Robot Analysis 1 | . . . 1 . Surveillance Status 1 | . . . 1 . Fabricator Hacks . | . . . . . Repair Station Hacks . | . . . . . Recycling Unit Hacks . | . . . . . Scanalyzer 4 | . . . 4 . Retrieve Study 4 | . . . 4 . Garrison Access Hacks . | . . . . . Unauthorized Hacks . | . . . . . Terminals . | . . . . . Fabricators . | . . . . . Repair Stations . | . . . . . Recycling Units . | . . . . . Scanalyzers . | . . . . . Garrison Access . | . . . . . Data Cores Recovered 2 | . . . 2 . Used . | . . . . . Hacking Detections 3 | . . . 3 . Full Trace Events 1 | . . . 1 . Feedback Events . | . . . . . Feedback Blocked . | . . . . . Robot Schematics Acquired . | . . . . . Robots Built . | . . . . . Authchips . | . . . . . Time . | . . . . . Total Robot Build Rating . | . . . . . Part Schematics Acquired . | . . . . . Parts Built . | . . . . . Authchips . | . . . . . Time . | . . . . . Total Part Build Rating . | . . . . . Part Studies Acquired 4 | . . . 4 . Parts Repaired . | . . . . . Time . | . . . . . Parts Recycled . | . . . . . Recycled Matter . | . . . . . Retrieved Matter . | . . . . . Retrieved Components . | . . . . . Parts Scanalyzed . | . . . . . Part Schematics Acquired . | . . . . . Parts Damaged . | . . . . . Bothacking | -11 -10 -10 -9 -8 ------------ Run | Yrd Mat Min Mat Mat Used RIF Installer . | . . . . . Robots Hacked . | . . . . . Non-combat . | . . . . . Combat . | . . . . . Robot Hacks Applied . | . . . . . Relay Couplers Released 2 | . . . . 2 Machine Destruction 2 | . . . . 2 Fabnet Peak Effective % . | . . . . . Robots Rewired . | . . . . . Allies Hacked . | . . . . . Hacks Repelled . | . . . . . Allies | -11 -10 -10 -9 -8 -------- Run | Yrd Mat Min Mat Mat Total Allies 3 | . . 3 . . Largest Group 3 | . . 3 3 . Highest-Rated Group 40 | . . 40 40 . Highest-Rated Ally 16 | . . 16 16 . Total Orders . | . . . . . Ally Attacks 84 | . . 1 83 . Total Damage 849 | . . . 849 . Kills 14 | . . . 14 . Allies Corrupted . | . . . . . Allies Melted . | . . . . . Intel | -11 -10 -10 -9 -8 ------- Run | Yrd Mat Min Mat Mat Active Infowar (turns) . | . . . . . Robot Analysis Total 1 | . . . 1 . Derelict Logs Recovered 1 | . . 1 . . Drone Launches . | . . . . . Drone Recoveries . | . . . . . Exploration | -11 -10 -10 -9 -8 ------------- Run | Yrd Mat Min Mat Mat Turns Passed 3290 | 66 374 774 1688 388 Spaces Moved 1677 | 44 181 466 841 145 Core 45 | 12 . . 3 30 Treads 1603 | 32 181 466 809 115 Legs 29 | . . . 29 . Wheels . | . . . . . Hover . | . . . . . Flight . | . . . . . Fastest Speed 50 | 50 160 160 160 100 Average Speed 163 | 130 160 160 164 179 Slowest Speed 300 | 160 160 160 300 250 Overloaded Moves . | . . . . . Propulsion Burnouts . | . . . . . Robots Hopped . | . . . . . Potential Cave-ins . | . . . . . Cave-ins Triggered . | . . . . . Exploration Rate (%) 44 | 4 38 99 64 18 Regions Visited 4 Branch Regions 1 Pre-discovered Areas . | . . . . . Known Exits Taken 1 | . . . 1 . Unknown Exits Taken 3 | 1 1 1 . . Scrap Searched 1 | . . 1 . . Spaces Dug 12 | . . . 12 . Terrain Destroyed 121 | . 2 24 30 65 Melee . | . . . . . Projectile 5 | . . . . 5 AOE 116 | . 2 24 30 60 Terrain Rammed . | . . . . . Walls Destroyed . | . . . . . Machines Disabled . | . . . . . Actions | -11 -10 -10 -9 -8 --------- Run | Yrd Mat Min Mat Mat Total 1934 | 53 220 479 973 209 Wait 18 | . 6 2 4 6 Move 1673 | 43 180 465 840 145 Hop . | . . . . . Pick Up 27 | 5 6 2 9 5 Fast Attach 13 | . . . 10 3 Attach 18 | 5 2 . 4 7 Detach 6 | . . . 1 5 Swap 13 | . 2 1 7 3 Drop 17 | . . 1 12 4 Fire 149 | . 24 8 86 31 Melee . | . . . . . Ram . | . . . . . Kick . | . . . . . Crush . | . . . . . Escape Stasis . | . . . . . Rewire . | . . . . . Trap . | . . . . . Miscellaneous . | . . . . . Route ------- -11/Scrapyard -10/Materials (discovered 2 exits: *Mat / [*Min]) -10/Mines (discovered 2 exits: *Mat x2) -9/Materials (discovered 4 exits: *Mat x2 / [*Min x2]) -8/Materials History --------- Turn | Location | Event 3 | -11/Scrapyard | Discovered new exit (range 15) 67 | -11/Scrapyard | Entered Materials 224 | -10/Materials | Discovered new exit (range 7) 275 | -10/Materials | Discovered new exit (range 5) 313 | -10/Materials | Build established: Mutant 441 | -10/Materials | Entered Mines 480 | -10/Mines | Discovered new exit (range 9) 486 | -10/Mines | Met a Derelict bent on vengeance 497 | -10/Mines | Assisted by bots powering up and referring to "LRC-V3" 556 | -10/Mines | A weapon hastily lodged in a ceiling crevice suddenly fell to the ground 735 | -10/Mines | Found a hidden stash of uninstalled traps 1022 | -10/Mines | Learned location of 1 exit from Materials 1041 | -10/Mines | Discovered new exit (range 8) 1215 | -10/Mines | Entered Materials 1215 | -9/Materials | Accompanied by 3 allies 1215 | -9/Materials | Evolved 2 slots: Utility x1, Weapon x1 1216 | -9/Materials | Identified exit to Materials 1520 | -9/Materials | Build established: Tank 1760 | -9/Materials | Discovered new exit (range 15) 1998 | -9/Materials | Discovered new exit (range 8) 2421 | -9/Materials | Build established: Gunner 2616 | -9/Materials | Lost 3 parts (1p2n) 2710 | -9/Materials | Discovered exit to Materials (range 3) 2726 | -9/Materials | Central database locked down 2903 | -9/Materials | Entered another Materials area 2903 | -8/Materials | Evolved 2 slots: Utility x2 3140 | -8/Materials | Garrison activated, responded to threat 3209 | -8/Materials | Destroyed 7 combat bots 3249 | -8/Materials | Lost 5 parts (1p1n1u2w) 3256 | -8/Materials | Core integrity fell below 50% 3283 | -8/Materials | Core integrity fell below 20% 3291 | -8/Materials | Destroyed by G-47 Trooper with Particle Gun Last Messages --------------- Acquired 18 matter. U-05 Engineer lays Concrete. L-31 Rogue destroyed. Nuclear Reactor explodes. G-50 Soldier destroyed. G-47 Trooper destroyed. Recycling Unit disabled. U-05 Engineer builds a Wall. C-45 Heavy ARC bursts open, deploying its payload. G-50 Soldier unfolds itself. L-31 Rogue unfolds itself. G-47 Trooper unfolds itself. B-36 Bruiser unfolds itself. M-28 Smith unfolds itself. K-01 Serf collects debris. Rocket Launcher+ destroyed. U-05 Engineer builds a Wall. The unstable cave ceiling collapses. Acquired Rocket Launcher+. Map ----- +----------------------------------------------------+ | ?????????????????????????????????????????????????? | | ?????????????????????????????????????????????????? | | ?????????????????????????????????????????????????? | | ?????????????????????????????????????????????????? | | ?????????????????????????????????????????????????? | | ?????????????????????????????????????????????????? | | ?????????????????????????????????????????????????? | | ?????????????????????????????????????????????????? | | ?????????????????????????????????????????????????? | | ?????????????????????????????????????????????????? | | ?????????????????????????????????????????????????? | | ?????????????????????????????????????????????????? | | ?????????????????????????????????????????????????? | | ?????????????????????????????????????????????????? | | ?????????????????????????????????????????????????? | | ?????????????????????????????????##+###??????????? | | ????????????????????????????????? ###????????? | | ????????????????????????????????? ???????? | | ????????????????????????????????? T ????????? | | ????????????????????????????????? ?????????? | | ????????????????????????????????? #??????????? | | ????????????????????????????###### #?? ??????? | | ???????????????????????###### # # !?????? | | ???????????????????????# =# s [ ]?????? | | ???????????????????????#]] ss ! ????? | | ??????????????????????##]@ !????? | | ??????????????????????# l% ?????? | | ??????????????????????## gmg % ????? | | ???????????????????????# "Y" %gb ????? | | ???????????????????????# "" """ "?????? | | ???????????????????????# = # ""????????? | | ????????????## ############ + ""????????? | | ????????????# " %=% %*= * #?""????????? | | ????????????# % % % % % #???????????? | | ????????????# = !=! * #???????????? | | ????????????????########## ###########???????????? | | ???????????????????????# #* %#???????????????????? | | ???????????????????##??### ###???????????????????? | | ???????????????????# # ##????????????????????? | | ???????????????????# !" # #######???????????????? | | ???????????????????# "G" /% [%![ #???????????????? | | ???????????????????# " " # ##### #???????????????? | | ???????????????????# ? # #???# #???????????????? | | ???????????????????# ? # #???# #???????????????? | | ???????????????????# ? #!#???# #???????????????? | | ???????????????????##??###%#???# #???????????????? | | ?????????????????????????#=#???# #???????????????? | | ?????????????????????##### #?###+#####???????????? | | ?????????????????????#!! ### #???????????? | | ?????????????????????#!! # """"" #???????????? | +----------------------------------------------------+ Best States ------------- Heat Dissipation 52 Energy Generation 14 Energy Capacity 265 Matter Stores 300 Matter Capacity 300 Sight Range 16 Terrain Scan Density 10 Evasion (%) 50 Recoil Reduction 2 Item Schematics ----------------- None Robot Schematics ------------------ None Fabricated ------------ Nothing Repaired ---------- Nothing Studied --------- Lgt. Treads | -9/Materials | Hacked Particle Cannon | -9/Materials | Hacked Rocket Launcher | -9/Materials | Hacked Imp. Treads | -9/Materials | Hacked Alien Tech Used ----------------- None Achievements -------------- None Challenges ------------ None Game ------ Seed OpticalReflexShearcannon Manual? 0 Play Time 00:23:02 Cumulative 196.4 hours Start 2025.10.26 @ 12:54:11 End 2025.10.26 @ 13:19:14 Sessions 1 Manual Loads 0 Difficulty Rogue Special Mode None Game No. 579 Rogue 578 Adventurer 1 Explorer 0 Win Type - Total 0 Types 0/0/0/0/0/0/0/0/0/0 Lore% 63 Gallery% 59 Achievement% 31 Wizard Run 0 Options --------- Layout 1 ASCII 0 Keyboard 0 Movement Mouse Keybinds 0 Fullscreen 1 Font 24/Smallcaps Map View 50x35 Zoom Use 0% Tactical HUD 0 Map Filters NONE Filters NONE Steam 1 RUN: 973f404b-d970-4a02-b383-3fbdd8ae98eb